bitfinex-derivatives/quotes_BTCF0:USTF0_20240910
["timestamp","ask_amount","ask_price","bid_price","bid_amount"]
[1725999070388,1.394704,57899.0,57898.0,0.001]
[1725999070582,1.74016,57899.0,57894.0,0.05018198]
[1725999070780,0.08636,57894.0,57893.0,0.05018198]
[1725999070978,0.086364,57892.0,57889.0,0.06824264]
[1725999071290,0.2,57890.0,57889.0,0.06824264]
[1725999072573,0.202,57890.0,57889.0,0.06824264]
[1725999072980,0.202,57890.0,57889.0,0.06924264]
[1725999073484,0.202,57890.0,57889.0,0.001]
[1725999073679,0.002,57890.0,57889.0,0.001]
[1725999073884,0.088366,57890.0,57889.0,0.001]
[1725999075492,0.202,57890.0,57881.0,0.09384214]
[1725999075681,0.202,57890.0,57873.0,0.06824264]
[1725999075682,0.086387,57876.0,57873.0,0.06824264]
[1725999075884,0.086393,57872.0,57871.0,0.06824264]
[1725999076085,0.086391,57873.0,57869.0,0.06824264]
[1725999076086,0.086396,57870.0,57869.0,0.06824264]
[1725999076389,0.286396,57870.0,57869.0,0.06824264]
[1725999076581,0.286396,57870.0,57865.0,0.0852423]
[1725999076582,0.286396,57870.0,57867.0,0.06824264]
[1725999076778,0.286396,57870.0,57867.0,0.0864]
[1725999078487,0.086398,57869.0,57867.0,0.0864]
[1725999079389,0.086398,57869.0,57867.0,0.0944]
[1725999079593,0.086399,57868.0,57867.0,0.0944]
[1725999079995,0.086399,57868.0,57867.0,0.0864]
[1725999080289,0.086399,57868.0,57867.0,0.0944]
[1725999082193,0.087399,57868.0,57867.0,0.0864]
[1725999082393,0.088399,57868.0,57867.0,0.0954]
[1725999082595,0.002,57868.0,57867.0,0.0954]
[1725999083089,0.002,57868.0,57867.0,1.21384]
[1725999083300,0.002,57868.0,57867.0,1.47384]
[1725999083482,0.002,57868.0,57867.0,1.56024]
[1725999083683,0.002,57868.0,57867.0,1.27384]
[1725999083880,0.002,57868.0,57867.0,0.009]
[1725999084086,0.088399,57868.0,57867.0,0.009]
[1725999085192,0.088399,57868.0,57867.0,0.0954]
[1725999091200,0.088399,57868.0,57867.0,0.009]
[1725999091706,0.088399,57868.0,57867.0,0.0954]
[1725999091888,0.002,57868.0,57867.0,0.0954]
[1725999096007,0.00104001,57878.0,57877.0,0.086385]
[1725999096207,0.086384,57878.0,57877.0,0.086385]
[1725999097896,0.088384,57878.0,57877.0,0.086385]
[1725999098095,0.088384,57878.0,57877.0,0.11157385]
[1725999098096,0.007,57878.0,57877.0,0.11157385]
[1725999099099,0.005,57878.0,57877.0,0.11457385]
[1725999099296,0.086381,57880.0,57879.0,0.086382]
[1725999100399,0.086381,57880.0,57879.0,0.15462464]
[1725999101112,0.086381,57880.0,57879.0,0.086382]
[1725999101311,0.086381,57880.0,57879.0,0.15452274]
[1725999101609,0.088381,57880.0,57879.0,0.15454131]
[1725999101809,0.088381,57880.0,57879.0,0.087382]
[1725999102398,0.088381,57880.0,57879.0,0.15554177]
[1725999102602,0.088381,57880.0,57879.0,0.087382]
[1725999105108,0.088381,57880.0,57879.0,0.001]
[1725999106209,0.088381,57880.0,57879.0,0.087382]
[1725999107216,0.11638712,57880.0,57879.0,0.087382]
[1725999107415,0.11638712,57880.0,57879.0,0.086382]
[1725999108708,0.11438712,57880.0,57879.0,0.086382]
[1725999108906,0.086385,57877.0,57876.0,0.11091601]
[1725999109210,0.11439112,57877.0,57876.0,0.086387]
[1725999110412,0.02800612,57877.0,57876.0,0.086387]
[1725999110612,0.02800662,57879.0,57876.0,0.003]
[1725999110814,0.02800662,57878.0,57876.0,0.003]
[1725999111117,0.02800537,57877.0,57876.0,0.003]
[1725999111307,0.086384,57878.0,57877.0,0.086384]
[1725999111508,0.11438989,57878.0,57877.0,0.086384]
[1725999111708,0.17277,57877.0,57876.0,0.002]
[1725999111916,1.084396,57870.0,57864.0,0.2626]
[1725999112218,1.084396,57870.0,57869.0,0.086397]
[1725999112722,1.084396,57870.0,57864.0,0.2626]
[1725999112723,0.086403,57867.0,57866.0,0.086402]
[1725999112910,0.086403,57865.0,57864.0,0.149004]
[1725999113710,0.086403,57865.0,57864.0,0.159004]
[1725999114909,0.087403,57865.0,57864.0,0.149004]
[1725999115115,0.002,57865.0,57864.0,0.27142274]
[1725999115716,0.088403,57865.0,57864.0,0.27142274]
[1725999118615,0.002,57865.0,57864.0,0.27142274]
[1725999122121,0.002,57865.0,57864.0,0.159004]
[1725999122513,0.002,57865.0,57864.0,1.64915473]
[1725999122711,0.002,57865.0,57864.0,1.67572306]
[1725999122912,0.002,57865.0,57864.0,1.77806339]
[1725999123118,0.002,57865.0,57864.0,1.67572306]
[1725999123423,0.002,57865.0,57864.0,1.76212806]
[1725999124824,0.002,57865.0,57864.0,1.76182509]
[1725999126825,0.002,57865.0,57864.0,0.64338509]
[1725999127130,0.002,57865.0,57864.0,0.74572163]
[1725999129714,0.002,57865.0,57864.0,0.74576617]
[1725999130117,0.002,57865.0,57864.0,0.77651739]
[1725999135529,0.998,57870.0,57869.0,0.086397]
[1725999135836,0.998,57870.0,57869.0,0.30038618]
[1725999136031,0.998,57870.0,57869.0,0.19801263]
[1725999136433,0.998,57870.0,57869.0,0.30038618]
[1725999136739,0.998,57870.0,57869.0,0.19801263]
[1725999137331,0.999,57870.0,57869.0,0.20401263]
[1725999138035,1.0,57870.0,57869.0,0.20401263]
[1725999139230,1.086396,57870.0,57869.0,0.20401263]
[1725999139537,1.086396,57870.0,57869.0,0.092397]
[1725999139737,1.086396,57870.0,57869.0,0.006]
[1725999140433,1.372792,57870.0,57869.0,0.006]
[1725999144036,1.172792,57870.0,57869.0,0.006]
[1725999150133,1.292792,57870.0,57869.0,0.006]
[1725999155152,0.086408,57862.0,57861.0,1.2e-07]
[1725999155450,0.086417,57856.0,57855.0,0.086417]
[1725999157451,0.088417,57856.0,57855.0,0.097417]
[1725999159539,0.002,57856.0,57855.0,0.097417]
[1725999159739,0.99888,57870.0,57867.0,0.086397]
[1725999159740,0.0864,57868.0,57867.0,0.086397]
[1725999160050,1.085277,57870.0,57869.0,0.086397]
[1725999160252,1.084397,57870.0,57869.0,0.086397]
[1725999160446,0.998,57870.0,57869.0,0.086397]
[1725999161342,0.998,57870.0,57869.0,0.17163493]
[1725999161541,0.999,57870.0,57869.0,0.086397]
[1725999162653,1.0,57870.0,57869.0,0.089397]
[1725999164051,1.086396,57870.0,57869.0,0.089397]
[1725999164247,1.286396,57870.0,57869.0,0.003]
[1725999165550,1.286396,57870.0,57869.0,0.089397]
[1725999165551,1.086396,57870.0,57869.0,0.089397]
[1725999166948,1.286396,57870.0,57869.0,0.089397]
[1725999167144,1.286396,57870.0,57869.0,0.003]
[1725999167454,1.086396,57870.0,57869.0,0.003]
[1725999167659,1.286396,57870.0,57869.0,0.003]
[1725999168354,2.34319233,57870.0,57855.0,0.08923793]
[1725999168548,0.2,57858.0,57851.0,0.004]
[1725999168855,0.2,57852.0,57849.0,0.086427]
[1725999169049,0.2,57852.0,57845.0,0.22706993]
[1725999169248,0.086433,57845.0,57844.0,0.08523793]
[1725999169457,0.086436,57843.0,57840.0,0.08523793]
[1725999169760,0.086436,57843.0,57840.0,0.08644]
[1725999170260,0.086439,57842.0,57840.0,0.08644]
[1725999171254,0.001,57843.0,57837.0,0.0554]
[1725999171455,0.086445,57837.0,57834.0,0.02449726]
[1725999171647,0.286445,57837.0,57834.0,0.086449]
[1725999171954,0.283445,57837.0,57834.0,0.086449]
[1725999172155,0.2,57837.0,57836.0,0.086447]
[1725999172543,0.201,57837.0,57836.0,0.086447]
[1725999173751,0.201,57837.0,57834.0,0.003]
[1725999173752,0.086448,57835.0,57834.0,0.003]
[1725999174153,1.291616,57835.0,57834.0,0.003]
[1725999174456,0.202,57837.0,57821.0,0.02942107]
[1725999174457,0.085464,57824.0,57821.0,0.02942107]
[1725999174648,0.086467,57823.0,57821.0,0.02542107]
[1725999174848,0.086467,57823.0,57821.0,0.086469]
[1725999175048,0.2,57824.0,57823.0,0.086466]
[1725999175462,0.086463,57825.0,57823.0,0.086466]
[1725999177552,0.087463,57825.0,57823.0,0.086466]
[1725999177760,0.088463,57825.0,57824.0,0.086464]
[1725999177949,0.002,57825.0,57824.0,0.086464]
[1725999178859,0.002,57825.0,57824.0,0.146464]
[1725999179444,0.002,57825.0,57824.0,0.06]
[1725999180661,0.002,57825.0,57824.0,0.146464]
[1725999182055,0.086446,57837.0,57836.0,0.086446]
[1725999182263,0.11192378,57837.0,57836.0,0.086446]
[1725999182846,0.11192378,57837.0,57826.0,0.2]
[1725999182847,0.086449,57835.0,57826.0,0.2]
[1725999183358,0.001,57837.0,57836.0,0.086447]
[1725999183754,0.002,57837.0,57836.0,0.173894]
[1725999184252,0.001,57837.0,57836.0,0.173894]
[1725999184451,0.001,57837.0,57836.0,1.292614]
[1725999185456,0.001,57837.0,57836.0,0.692614]
[1725999186163,0.002,57837.0,57836.0,0.692614]
[1725999186353,0.064,57852.0,57836.0,1.11972]
[1725999186354,0.004,57852.0,57836.0,1.11972]
[1725999186660,0.086418,57855.0,57854.0,0.086418]
[1725999186863,0.086417,57856.0,57854.0,0.086418]
[1725999187249,0.086422,57853.0,57851.0,0.086423]
[1725999187449,0.001,57852.0,57851.0,0.086423]
[1725999188261,0.086419,57855.0,57852.0,0.086422]
[1725999188458,0.086419,57855.0,57848.0,0.06]
[1725999188854,0.086419,57855.0,57852.0,0.086422]
[1725999189059,0.007,57855.0,57852.0,0.086422]
[1725999189260,0.086421,57854.0,57852.0,0.086422]
[1725999189857,0.086421,57854.0,57853.0,0.086421]
[1725999190063,0.007,57855.0,57854.0,0.08642]
[1725999190366,0.286416,57857.0,57855.0,0.086417]
[1725999190561,0.286416,57857.0,57856.0,0.086417]
[1725999190964,0.2,57857.0,57856.0,0.086417]
[1725999191265,0.11197272,57860.0,57859.0,0.086412]
[1725999192471,0.086411,57860.0,57859.0,0.086412]
[1725999193361,0.099411,57860.0,57859.0,0.086412]
[1725999193568,0.086419,57855.0,57854.0,0.086419]
[1725999193866,0.286419,57855.0,57854.0,0.086419]
[1725999195570,0.293419,57855.0,57854.0,0.086419]
[1725999196278,0.013,57855.0,57854.0,0.086419]
[1725999196668,0.013,57855.0,57854.0,0.13739662]
[1725999196868,0.013,57855.0,57854.0,0.086419]
[1725999199781,0.099418,57855.0,57854.0,0.086419]
[1725999201682,0.299418,57855.0,57854.0,0.086419]
[1725999205784,0.086421,57853.0,57852.0,0.05115118]
[1725999206284,0.086421,57853.0,57850.0,0.0251108]
[1725999206474,0.086422,57853.0,57852.0,0.08642]
[1725999206677,0.013,57855.0,57854.0,0.08642]
[1725999206974,0.007,57855.0,57854.0,0.13758956]
[1725999207179,0.086417,57856.0,57854.0,0.13758956]
[1725999207678,0.086417,57856.0,57855.0,0.05116956]
[1725999208379,0.086418,57855.0,57854.0,0.08642]
[1725999209180,0.093418,57855.0,57854.0,0.08642]
[1725999209687,0.099418,57855.0,57854.0,0.08642]
[1725999211185,0.013,57855.0,57854.0,0.08642]
[1725999211483,0.013,57855.0,57854.0,0.19849794]
[1725999212185,0.086412,57859.0,57858.0,0.086414]
[1725999212381,0.086408,57863.0,57862.0,0.086405]
[1725999213679,0.100408,57863.0,57862.0,0.086405]
[1725999215688,0.113408,57863.0,57862.0,0.087405]
[1725999219590,0.113408,57863.0,57862.0,0.13865845]
[1725999220287,0.027,57863.0,57862.0,0.33865845]
[1725999220594,0.99888,57870.0,57869.0,0.086397]
[1725999220595,0.998,57870.0,57869.0,0.086397]
[1725999220790,0.998,57870.0,57869.0,0.19840547]
[1725999221089,0.998,57870.0,57869.0,0.25840547]
[1725999221396,0.998,57870.0,57869.0,0.35748326]
[1725999221695,0.998,57870.0,57869.0,0.25490547]
[1725999221891,1.084396,57870.0,57869.0,0.34032824]
[1725999222093,0.086397,57869.0,57868.0,0.08542277]
[1725999222297,0.086399,57868.0,57867.0,0.08542277]
[1725999222497,0.2,57869.0,57866.0,0.17182377]
[1725999222498,0.0864,57867.0,57866.0,0.17182377]
[1725999222687,0.0864,57867.0,57866.0,0.28355154]
[1725999224195,0.0864,57867.0,57866.0,0.28455154]
[1725999224394,0.0864,57867.0,57866.0,0.17282377]
[1725999225405,0.0864,57867.0,57866.0,0.087401]
[1725999225700,0.0864,57867.0,57866.0,0.17282377]
[1725999225898,0.0864,57867.0,57866.0,0.087401]
[1725999226099,0.0944,57867.0,57866.0,0.088401]
[1725999227001,0.0944,57867.0,57866.0,0.28548464]
[1725999227395,0.008,57867.0,57866.0,0.28546837]
[1725999227696,0.008,57867.0,57866.0,0.28646387]
[1725999227900,0.008,57867.0,57866.0,1.49130587]
[1725999228195,0.99892,57870.0,57869.0,0.086397]
[1725999228403,0.998,57870.0,57869.0,0.25805787]
[1725999229396,1.006,57870.0,57869.0,0.25905787]
[1725999229803,1.007,57870.0,57869.0,0.26005787]
[1725999230194,1.007,57870.0,57869.0,0.34645487]
[1725999231023,1.007,57870.0,57869.0,0.34593906]
[1725999231698,1.007,57870.0,57869.0,0.25954206]
[1725999231896,1.007,57870.0,57869.0,0.34593906]
[1725999232103,1.007,57870.0,57869.0,0.25954206]
[1725999232401,1.007,57870.0,57869.0,0.19954206]
[1725999232599,1.007,57870.0,57869.0,0.28480625]
[1725999234010,1.007,57870.0,57869.0,0.31027049]
[1725999234508,1.007,57870.0,57869.0,0.31026767]
[1725999235391,1.007,57870.0,57869.0,0.11386124]
[1725999236499,1.007,57870.0,57869.0,0.20025824]
[1725999236803,1.007,57870.0,57869.0,0.11386124]
[1725999237003,1.007,57870.0,57869.0,0.20025824]
[1725999237298,1.007,57870.0,57869.0,0.11386124]
[1725999240210,1.093396,57870.0,57869.0,0.002]
[1725999240597,1.093396,57870.0,57869.0,0.088397]
[1725999241292,1.093396,57870.0,57869.0,0.002]
[1725999242205,0.086409,57861.0,57860.0,0.0511599]
[1725999242406,0.2,57865.0,57861.0,0.086409]
[1725999242607,0.0587,57864.0,57861.0,0.17178848]
[1725999243312,0.086409,57862.0,57861.0,0.086409]
[1725999243516,0.086409,57862.0,57861.0,0.28293685]
[1725999243806,0.086402,57866.0,57861.0,0.21359217]
[1725999244008,0.086402,57866.0,57865.0,0.086403]
[1725999244609,0.086397,57869.0,57863.0,0.3024438]
[1725999244795,0.086399,57868.0,57867.0,0.086399]
[1725999245705,0.998,57870.0,57869.0,0.086397]
[1725999245905,0.99888,57870.0,57869.0,0.086397]
[1725999246101,0.99888,57870.0,57869.0,0.19723882]
[1725999246297,0.998,57870.0,57869.0,0.19723882]
[1725999246498,0.998,57870.0,57869.0,0.29968262]
[1725999246698,0.998,57870.0,57869.0,0.38607962]
[1725999246906,1.008,57870.0,57869.0,0.28463582]
[1725999247107,1.008,57870.0,57869.0,0.3869829]
[1725999247707,1.008,57870.0,57869.0,0.4469829]
[1725999248311,1.01,57870.0,57869.0,0.4479829]
[1725999250408,1.01,57870.0,57869.0,0.34563582]
[1725999251004,1.01,57870.0,57869.0,0.44801416]
[1725999251899,1.01,57870.0,57869.0,0.3454917]
[1725999254219,1.01,57870.0,57869.0,0.34554348]
[1725999257515,1.01,57870.0,57869.0,0.234794]
[1725999259508,1.01,57870.0,57869.0,0.321191]
[1725999259818,1.01,57870.0,57869.0,1.55035554]
[1725999260815,1.01,57870.0,57869.0,0.43195554]
[1725999261224,1.01,57870.0,57869.0,0.517329]
[1725999261520,1.008,57870.0,57869.0,0.516329]
[1725999261717,1.008,57870.0,57869.0,1.034729]
[1725999261920,0.998,57870.0,57869.0,1.033729]
[1725999262511,0.998,57870.0,57869.0,0.342535]
[1725999262714,0.998,57870.0,57869.0,0.086397]
[1725999262915,0.998,57870.0,57869.0,0.15471212]
[1725999263124,0.998,57870.0,57869.0,0.086397]
[1725999263420,1.084396,57870.0,57869.0,0.086397]
[1725999264019,1.085396,57870.0,57869.0,0.086397]
[1725999264320,1.085396,57870.0,57869.0,0.13764049]
[1725999264515,1.085396,57870.0,57869.0,0.19759346]
[1725999264912,1.086396,57870.0,57869.0,0.28300148]
[1725999265218,1.086396,57870.0,57869.0,0.19759346]
[1725999265517,1.086396,57870.0,57869.0,0.28299741]
[1725999265817,1.086396,57870.0,57867.0,0.02476562]
[1725999265818,1.0,57870.0,57867.0,0.08540819]
[1725999266014,1.0,57870.0,57869.0,0.086397]
[1725999266718,1.088396,57870.0,57869.0,0.086397]
[1725999266928,0.0864,57868.0,57866.0,0.17180919]
[1725999267221,0.0864,57867.0,57866.0,0.086401]
[1725999268112,0.086403,57865.0,57864.0,0.08540819]
[1725999268318,0.086403,57865.0,57864.0,0.19694427]
[1725999268543,0.086405,57864.0,57863.0,0.17181419]
[1725999268714,0.202405,57864.0,57863.0,0.17181419]
[1725999269224,0.202405,57864.0,57863.0,0.08540819]
[1725999269623,0.086406,57863.0,57862.0,0.08540819]
[1725999269819,0.086406,57863.0,57862.0,0.19699248]
[1725999270814,0.088406,57863.0,57862.0,0.19699248]
[1725999271015,0.088406,57863.0,57862.0,0.08540819]
[1725999271525,0.086408,57862.0,57861.0,0.17181719]
[1725999271725,0.086408,57862.0,57861.0,0.28337247]
[1725999272417,0.004,57863.0,57861.0,0.28337247]
[1725999272735,0.086408,57862.0,57861.0,0.086409]
[1725999272921,0.087408,57862.0,57861.0,0.086409]
[1725999274015,0.088408,57862.0,57861.0,0.086409]
[1725999275031,0.087408,57862.0,57861.0,0.086409]
[1725999276218,0.088408,57862.0,57861.0,0.086409]
[1725999276927,0.002,57862.0,57861.0,0.086409]
[1725999280630,0.088408,57862.0,57861.0,0.086409]
[1725999289121,0.002,57862.0,57861.0,0.086409]
[1725999290534,0.088408,57862.0,57861.0,0.086409]
[1725999290932,0.172822,57860.0,57859.0,0.05124579]
[1725999291125,0.2,57861.0,57852.0,0.05124579]
[1725999291433,0.086421,57855.0,57854.0,0.086419]
[1725999292526,0.086421,57853.0,57852.0,0.05124579]
[1725999292834,0.2,57853.0,57851.0,0.0513803]
[1725999293137,0.2,57853.0,57843.0,0.0513803]
[1725999293138,0.086427,57849.0,57843.0,0.0513803]
[1725999293326,0.086438,57842.0,57841.0,0.0513803]
[1725999293630,0.286435,57844.0,57838.0,0.05143048]
[1725999293821,0.086442,57839.0,57838.0,0.05143048]
[1725999294532,0.086444,57838.0,57837.0,0.13787548]
[1725999294721,0.086444,57838.0,57837.0,0.19883946]
[1725999296221,0.087444,57838.0,57837.0,0.22683946]
[1725999296831,0.087444,57838.0,57837.0,0.19995354]
[1725999297632,0.087444,57838.0,57837.0,0.114445]
[1725999298941,0.001,57838.0,57837.0,0.114445]
[1725999301046,0.001,57838.0,57837.0,0.31202377]
[1725999301227,0.0625,57853.0,57837.0,0.31202377]
[1725999301428,0.086424,57851.0,57849.0,0.086427]
[1725999301641,0.286424,57851.0,57849.0,0.13770561]
[1725999301839,0.286424,57851.0,57850.0,0.05127861]
[1725999302144,0.1226,57855.0,57842.0,0.08546435]
[1725999302145,0.086419,57855.0,57851.0,0.086424]
[1725999302441,0.086419,57855.0,57854.0,0.08642]
[1725999302631,0.11135321,57855.0,57854.0,0.08642]
[1725999303236,0.31135321,57855.0,57854.0,0.08642]
[1725999303642,0.31135321,57855.0,57854.0,0.13763484]
[1725999303938,0.31135321,57855.0,57854.0,0.08642]
[1725999304131,0.31135321,57855.0,57850.0,0.09384915]
[1725999304132,0.08642,57854.0,57853.0,0.05121484]
[1725999304333,0.086421,57853.0,57852.0,0.13763684]
[1725999304942,0.086421,57853.0,57852.0,0.086422]
[1725999305144,0.086421,57853.0,57852.0,0.13761633]
[1725999305345,0.086424,57851.0,57850.0,0.06837148]
[1725999305845,0.086424,57851.0,57850.0,0.15479448]
[1725999306742,0.086424,57851.0,57850.0,0.086423]
[1725999307046,0.086424,57851.0,57850.0,0.15479448]
[1725999307229,0.086424,57851.0,57850.0,0.003]
[1725999307433,0.372848,57851.0,57850.0,0.05422324]
[1725999307640,1.491408,57851.0,57850.0,0.003]
[1725999308040,0.172864,57846.0,57845.0,0.05122324]
[1725999308346,0.172872,57843.0,57842.0,0.06837148]
[1725999308638,0.172872,57843.0,57831.0,0.0047]
[1725999308639,0.086445,57837.0,57836.0,0.05125461]
[1725999308838,0.086435,57844.0,57835.0,0.05126096]
[1725999308839,0.086447,57836.0,57835.0,0.05126096]
[1725999309141,0.086447,57836.0,57833.0,0.05126096]
[1725999309142,0.08645,57834.0,57833.0,0.05126096]
[1725999309440,0.086448,57835.0,57832.0,0.05126096]
[1725999309441,0.086451,57833.0,57832.0,0.05126096]
[1725999309636,0.086453,57832.0,57831.0,0.05126096]
[1725999309831,0.286453,57832.0,57831.0,0.05126096]
[1725999310031,0.086456,57830.0,57828.0,0.06837148]
[1725999310429,0.086457,57829.0,57827.0,0.06837148]
[1725999311037,0.2,57832.0,57827.0,0.06829613]
[1725999311038,0.086458,57828.0,57827.0,0.06829613]
[1725999311243,0.286458,57828.0,57827.0,0.06829613]
[1725999311432,0.2,57828.0,57824.0,0.06829613]
[1725999311629,0.2,57828.0,57827.0,0.028]
[1725999311630,0.286458,57828.0,57827.0,0.028]
[1725999312037,0.286458,57828.0,57827.0,0.014]
[1725999312341,0.287458,57828.0,57827.0,0.07922033]
[1725999312535,0.287458,57828.0,57827.0,0.028]
[1725999313446,0.892716,57828.0,57827.0,0.07920717]
[1725999313649,0.892716,57828.0,57827.0,0.028]
[1725999313650,0.606258,57828.0,57827.0,0.028]
[1725999313841,1.491716,57828.0,57827.0,0.014]
[1725999314151,1.492716,57828.0,57827.0,0.028]
[1725999314341,1.579174,57828.0,57827.0,0.028]
[1725999314544,0.086467,57822.0,57820.0,0.05120717]
[1725999314850,0.086472,57819.0,57818.0,0.05120717]
[1725999315057,0.286472,57819.0,57818.0,0.05120717]
[1725999315241,0.086473,57818.0,57817.0,0.05120717]
[1725999315638,0.086473,57818.0,57817.0,0.086475]
[1725999315841,0.086473,57818.0,57817.0,0.13767974]
[1725999316451,0.286472,57819.0,57818.0,0.086473]
[1725999316950,0.1674,57829.0,57817.0,0.05120474]
[1725999317150,0.001,57822.0,57820.0,0.007]
[1725999317349,0.001,57822.0,57821.0,0.086469]
[1725999317651,0.001,57822.0,57821.0,0.172938]
[1725999317839,0.001,57822.0,57821.0,1.345778]
[1725999318043,0.2,57830.0,57829.0,0.086457]
[1725999318659,0.2,57830.0,57829.0,0.13759665]
[1725999319051,0.2,57830.0,57829.0,0.086457]
[1725999320153,0.086442,57840.0,57839.0,0.086442]
[1725999320356,0.3261,57841.0,57836.0,0.05115446]
[1725999320357,0.02520133,57841.0,57836.0,0.05115446]
[1725999320556,0.2,57843.0,57840.0,0.086441]
[1725999320752,0.286439,57841.0,57840.0,0.086441]
[1725999320947,0.2,57841.0,57838.0,0.05115446]
[1725999321152,0.086445,57837.0,57836.0,0.05115446]
[1725999321354,0.286445,57837.0,57836.0,0.05115446]
[1725999322451,0.37389,57837.0,57836.0,0.05815446]
[1725999322655,0.37889,57837.0,57836.0,0.007]
[1725999323756,0.292445,57837.0,57836.0,0.007]
[1725999323960,0.32017528,57837.0,57836.0,0.05115446]
[1725999324553,0.32017528,57837.0,57836.0,0.05125863]
[1725999324758,0.31917528,57837.0,57836.0,0.05225863]
[1725999325064,0.32317528,57837.0,57836.0,0.05225863]
[1725999325262,0.32317528,57837.0,57836.0,0.05125863]
[1725999325263,0.31517528,57837.0,57836.0,0.05125863]
[1725999325465,0.31817528,57837.0,57836.0,0.05125863]
[1725999325760,0.31717528,57837.0,57835.0,0.13770563]
[1725999326159,0.292445,57837.0,57836.0,0.13770563]
[1725999326368,0.292445,57837.0,57836.0,0.086447]
[1725999327363,0.293445,57837.0,57836.0,0.086447]
[1725999327565,0.295445,57837.0,57836.0,0.086447]
[1725999328165,0.08645,57834.0,57833.0,0.06819975]
[1725999328367,0.086451,57833.0,57832.0,0.15465175]
[1725999328567,0.286451,57833.0,57832.0,0.15465175]
[1725999328773,0.286451,57833.0,57832.0,0.06819975]
[1725999329082,0.086453,57832.0,57831.0,0.06819975]
[1725999329273,0.086454,57831.0,57830.0,0.06836666]
[1725999329472,0.086454,57831.0,57823.0,0.02481422]
[1725999329473,0.2,57832.0,57828.0,0.06836666]
[1725999329660,0.2,57829.0,57828.0,0.06836666]
[1725999329866,0.286458,57829.0,57827.0,0.15482666]
[1725999330178,0.086458,57828.0,57827.0,0.15482666]
[1725999330372,0.086458,57828.0,57827.0,0.08646]
[1725999331774,0.086458,57828.0,57827.0,0.09046]
[1725999333378,0.086458,57828.0,57827.0,0.08646]
[1725999334775,0.086458,57828.0,57827.0,0.08746]
[1725999336574,0.086458,57828.0,57827.0,0.08646]
[1725999337080,0.086458,57828.0,57827.0,0.17192435]
[1725999337382,0.086458,57828.0,57827.0,0.19901413]
[1725999337878,0.286457,57829.0,57828.0,0.086458]
[1725999338080,0.286457,57829.0,57828.0,0.28472982]
[1725999338272,0.286457,57829.0,57828.0,0.19901213]
[1725999338670,0.086453,57832.0,57831.0,0.086454]
[1725999341482,0.089453,57832.0,57831.0,0.086454]
[1725999344081,0.091453,57832.0,57831.0,0.086454]
[1725999344483,0.091453,57832.0,57831.0,0.28477242]
[1725999345184,0.091453,57832.0,57831.0,0.17222649]
[1725999345381,0.091453,57832.0,57831.0,0.19905455]
[1725999346183,0.088453,57832.0,57831.0,0.19905455]
[1725999346381,0.089453,57832.0,57831.0,0.19905455]
[1725999346883,0.088453,57832.0,57831.0,0.19905455]
[1725999348377,0.087453,57832.0,57831.0,0.19905455]
[1725999349876,0.089453,57832.0,57831.0,0.19905455]
[1725999350073,0.090453,57832.0,57831.0,0.19905455]
[1725999350886,0.001,57832.0,57831.0,0.19905455]
[1725999351583,0.086453,57832.0,57831.0,0.19905455]
[1725999351779,0.2,57833.0,57832.0,0.086453]
[1725999351982,0.3261,57843.0,57832.0,0.11260055]
[1725999352182,0.3261,57843.0,57831.0,0.2]
[1725999352183,0.086436,57844.0,57843.0,0.086436]
[1725999352378,0.11117643,57844.0,57843.0,0.086436]
[1725999352580,0.02474043,57844.0,57843.0,0.19874426]
[1725999352881,0.08643,57847.0,57846.0,0.086432]
[1725999353080,0.1118267,57847.0,57846.0,0.086432]
[1725999353581,0.086435,57844.0,57843.0,0.08586694]
[1725999353780,0.292435,57844.0,57843.0,0.08686694]
[1725999353990,0.297435,57844.0,57843.0,0.002]
[1725999354180,0.291435,57844.0,57843.0,0.001]
[1725999354584,0.286435,57844.0,57842.0,0.08586694]
[1725999354889,0.37787,57844.0,57843.0,0.001]
[1725999355090,0.291435,57844.0,57843.0,0.001]
[1725999355989,0.297435,57844.0,57843.0,0.002]
[1725999356779,0.292435,57844.0,57843.0,0.001]
[1725999356990,0.296435,57844.0,57843.0,0.001]
[1725999357894,0.297435,57844.0,57843.0,0.002]
[1725999358890,0.297435,57844.0,57843.0,0.088436]
[1725999360493,0.297435,57844.0,57843.0,0.174872]
[1725999360494,0.011,57844.0,57843.0,0.174872]
[1725999361583,0.011,57844.0,57843.0,0.088436]
[1725999361788,0.211,57844.0,57843.0,0.088436]
[1725999361991,0.297435,57844.0,57843.0,0.088436]
[1725999365886,0.297435,57844.0,57843.0,0.002]
[1725999365887,0.38387,57844.0,57843.0,0.002]
[1725999366291,0.35551,57844.0,57843.0,0.002]
[1725999367501,0.37287,57844.0,57843.0,0.002]
[1725999367994,0.259317,57841.0,57840.0,0.05148703]
[1725999368201,0.172888,57838.0,57837.0,0.06864938]
[1725999368392,0.172896,57835.0,57826.0,0.004]
[1725999368592,0.172896,57835.0,57824.0,0.086463]
[1725999369089,0.172896,57835.0,57824.0,0.11203117]
[1725999369598,0.222696,57835.0,57824.0,0.11203117]
[1725999369999,0.222696,57835.0,57834.0,0.09081172]
[1725999370399,1.341416,57835.0,57834.0,0.09081172]
[1725999370600,0.741416,57835.0,57834.0,0.01]
[1725999371591,0.086454,57831.0,57830.0,0.08581172]
[1725999371798,0.172916,57828.0,57827.0,0.08581172]
[1725999372101,0.172916,57828.0,57821.0,0.15417407]
[1725999372102,0.2,57828.0,57825.0,0.08581172]